fUST/lending_fUST_20250713
["ID","MTS","AMOUNT","RATE_DAILY","PERIOD"]
[371551064,1752345061622,-460.0,0.00020759,2]
[371551065,1752345061632,-2045.98,0.00020759,2]
[371551066,1752345061641,-485.06,0.00020759,2]
[371551067,1752345061651,-1166.84,0.00020759,2]
[371551068,1752345061660,-4133.6,0.00020759,2]
[371551069,1752345061669,-486.0,0.00020786,2]
[371551070,1752345061679,-168.0,0.00020811,2]
[371551071,1752345061689,-151.0,0.00020821,2]
[371551072,1752345061699,-561.63,0.00020821,2]
[371551073,1752345061708,-460.0,0.00020821,2]
[371551074,1752345061718,-534.5,0.00020821,2]
[371551075,1752345061727,-463.32,0.00020821,2]
[371551076,1752345061736,-460.0,0.00020821,2]
[371551077,1752345061746,-485.04,0.00020821,2]
[371551078,1752345061755,-585.71,0.00020821,2]
[371551079,1752345061765,-385.5,0.00020821,2]
[371551080,1752345061774,-1139.06,0.00020821,2]
[371551081,1752345061784,-566.32,0.00020821,2]
[371551082,1752345061793,-670.89,0.00020821,2]
[371551083,1752345061803,-588.29,0.00020821,2]
[371551084,1752345061812,-1499.85,0.00020821,2]
[371551085,1752345061822,-2698.45,0.00020821,2]
[371551086,1752345061831,-485.02,0.00020821,2]
[371551087,1752345061840,-644.74,0.00020821,2]
[371551088,1752345061850,-460.0,0.00020821,2]
[371551089,1752345061864,-480.24,0.00020821,2]
[371551090,1752345061873,-460.0,0.00020821,2]
[371551091,1752345061882,-596.61,0.00020821,2]
[371551092,1752345061892,-460.0,0.00020821,2]
[371551093,1752345061902,-1004.62,0.00020821,2]
[371551094,1752345061912,-460.0,0.00020821,2]
[371551095,1752345061921,-608.08,0.00020821,2]
[371551096,1752345061933,-1615.51,0.00020821,2]
[371551097,1752345061944,-460.0,0.00020821,2]
[371551098,1752345061956,-2336.58,0.00020821,2]
[371551099,1752345061966,-550.21,0.00020821,2]
[371551100,1752345061975,-460.0,0.00020821,2]
[371551101,1752345061985,-3234.99,0.00020821,2]
[371551102,1752345061994,-460.0,0.00020821,2]
[371551103,1752345062003,-460.0,0.00020821,2]
[371551104,1752345062014,-778.51,0.00020821,2]
[371551105,1752345062024,-636.67,0.00020821,2]
[371551106,1752345062034,-464.69,0.00020821,2]
[371551107,1752345062044,-2115.58,0.00020821,2]
[371551108,1752345062054,-460.0,0.00020821,2]
[371551109,1752345062064,-258.21,0.00020853,2]
[371551110,1752345062074,-553.76,0.000209,2]
[371551111,1752345062083,-1724.13888368,0.00020934,4]
[371551112,1752345062092,-153.0,0.00020959,2]
[371551113,1752345062102,-2000.0,0.00021016,2]
[371551114,1752345062111,-2000.0,0.00021016,2]
[371551115,1752345062121,-168.0,0.00021023,2]
[371551116,1752345062131,-168.0,0.00021033,2]
[371551117,1752345062141,-460.0,0.00021033,2]
[371551118,1752345062151,-1158.6,0.00021033,2]
[371551119,1752345062161,-1102.62,0.00021033,2]
[371551120,1752345062170,-460.0,0.00021033,2]
[371551121,1752345062180,-2045.98,0.00021033,2]
[371551122,1752345062189,-485.06,0.00021033,2]
[371551123,1752345062199,-1166.84,0.00021033,2]
[371551124,1752345062210,-4133.6,0.00021033,2]
[371551125,1752345062221,-168.0,0.00021046,2]
[371551126,1752345062231,-166.804095,0.00021061,2]
[371551127,1752345062241,-561.63,0.00021095,2]
[371551128,1752345062251,-460.0,0.00021095,2]
[371551129,1752345062262,-534.5,0.00021095,2]
[371551130,1752345062272,-463.32,0.00021095,2]
[371551131,1752345062282,-460.0,0.00021095,2]
[371551132,1752345062291,-485.04,0.00021095,2]
[371551133,1752345062301,-585.71,0.00021095,2]
[371551134,1752345062312,-1139.06,0.00021095,2]
[371551135,1752345062322,-566.32,0.00021095,2]
[371551136,1752345062332,-670.89,0.00021095,2]
[371551137,1752345062342,-588.29,0.00021095,2]
[371551138,1752345062352,-2698.45,0.00021095,2]
[371551139,1752345062362,-1499.85,0.00021095,2]
[371551140,1752345062372,-485.02,0.00021095,2]
[371551141,1752345062382,-644.74,0.00021095,2]
[371551142,1752345062392,-460.0,0.00021095,2]
[371551143,1752345062401,-480.24,0.00021095,2]
[371551144,1752345062411,-460.0,0.00021095,2]
[371551145,1752345062421,-596.61,0.00021095,2]
[371551146,1752345062431,-1004.62,0.00021095,2]
[371551147,1752345062440,-460.0,0.00021095,2]
[371551148,1752345062450,-608.08,0.00021095,2]
[371551149,1752345062460,-1615.51,0.00021095,2]
[371551150,1752345062471,-460.0,0.00021095,2]
[371551151,1752345062481,-2336.58,0.00021095,2]
[371551152,1752345062490,-550.21,0.00021095,2]
[371551153,1752345062500,-460.0,0.00021095,2]
[371551154,1752345062510,-3234.99,0.00021095,2]
[371551155,1752345062520,-460.0,0.00021095,2]
[371551156,1752345062530,-460.0,0.00021095,2]
[371551157,1752345062540,-778.51,0.00021095,2]
[371551158,1752345062550,-636.67,0.00021095,2]
[371551159,1752345062560,-464.69,0.00021095,2]
[371551160,1752345062571,-2115.58,0.00021095,2]
[371551161,1752345062581,-460.0,0.00021095,2]
[371551162,1752345062591,-168.0,0.00021108,2]
[371551163,1752345062602,-215.0738,0.00021136,2]
[371551164,1752345062612,-168.0,0.00021141,2]
[371551165,1752345062622,-1827.60029057,0.00021144,2]
[371551166,1752345062632,-168.0,0.00021155,2]
[371551167,1752345062642,-168.0,0.00021176,2]
[371551168,1752345062652,-1724.13888368,0.00021245,4]
[371551169,1752345062662,-460.0,0.00021307,2]
[371551170,1752345062672,-1158.6,0.00021307,2]
[371551171,1752345062683,-1102.62,0.00021307,2]
[371551172,1752345062694,-460.0,0.00021307,2]
[371551173,1752345062704,-2045.98,0.00021307,2]
[371551174,1752345062716,-485.06,0.00021307,2]
[371551175,1752345062726,-1166.84,0.00021307,2]
[371551176,1752345062736,-4133.6,0.00021307,2]
[371551177,1752345062747,-168.0,0.00021357,2]
[371551178,1752345062756,-216.56,0.00021369,2]
[371551179,1752345062766,-561.63,0.00021369,2]
[371551180,1752345062777,-401.88,0.00021369,2]
[371551181,1752345062786,-534.5,0.00021369,2]
[371551182,1752345062796,-463.32,0.00021369,2]
[371551183,1752345062807,-460.0,0.00021369,2]
[371551184,1752345062816,-485.04,0.00021369,2]
[371551185,1752345062826,-585.71,0.00021369,2]
[371551186,1752345062836,-1139.06,0.00021369,2]
[371551187,1752345062846,-566.32,0.00021369,2]
[371551188,1752345062858,-670.89,0.00021369,2]
[371551189,1752345062869,-588.29,0.00021369,2]
[371551190,1752345062985,-2698.45,0.00021369,2]
[371551191,1752345062995,-1499.85,0.00021369,2]
[371551192,1752345063004,-485.02,0.00021369,2]
[371551193,1752345063014,-644.74,0.00021369,2]
[371551194,1752345063023,-460.0,0.00021369,2]
[371551195,1752345063033,-480.24,0.00021369,2]
[371551196,1752345063043,-460.0,0.00021369,2]
[371551197,1752345063053,-596.61,0.00021369,2]
[371551198,1752345063062,-1004.62,0.00021369,2]
[371551199,1752345063072,-431.72,0.00021369,2]
[371551200,1752345063082,-608.08,0.00021369,2]
[371551201,1752345063091,-1615.51,0.00021369,2]
[371551202,1752345063100,-460.0,0.00021369,2]
[371551203,1752345063110,-2336.58,0.00021369,2]
[371551204,1752345063120,-550.21,0.00021369,2]
[371551205,1752345063130,-460.0,0.00021369,2]
[371551206,1752345063139,-3234.99,0.00021369,2]
[371551207,1752345063149,-460.0,0.00021369,2]
[371551208,1752345063158,-460.0,0.00021369,2]
[371551209,1752345063168,-778.51,0.00021369,2]
[371551210,1752345063177,-636.67,0.00021369,2]
[371551211,1752345063187,-464.69,0.00021369,2]
[371551212,1752345063198,-2115.58,0.00021369,2]
[371551213,1752345063208,-460.0,0.00021369,2]
[371551214,1752345063217,-221.0,0.00021407,2]
[371551215,1752345063227,-168.0,0.00021413,2]
[371551216,1752345063237,-306.0,0.00021452,2]
[371551217,1752345063247,-1724.13888368,0.00021555,5]
[371551218,1752345063256,-2500.0,0.00021564,2]
[371551219,1752345063266,-1158.6,0.00021581,2]
[371551220,1752345063276,-1102.62,0.00021581,2]
[371551221,1752345063285,-460.0,0.00021581,2]
[371551222,1752345063295,-2045.98,0.00021581,2]
[371551223,1752345063305,-485.06,0.00021581,2]
[371551224,1752345063315,-1166.84,0.00021581,2]
[371551225,1752345063325,-4133.6,0.00021581,2]
[371551226,1752345063335,-168.0,0.00021581,2]
[371551227,1752345063344,-166.804095,0.000216,3]
[371551228,1752345063353,-1827.60029057,0.00021629,2]
[371551229,1752345063363,-600.0,0.00021638,2]
[371551230,1752345063373,-561.63,0.00021643,2]
[371551231,1752345063383,-534.5,0.00021643,2]
[371551232,1752345063393,-463.32,0.00021643,2]
[371551233,1752345063402,-460.0,0.00021643,2]
[371551234,1752345063413,-485.04,0.00021643,2]
[371551235,1752345063422,-585.71,0.00021643,2]
[371551236,1752345063432,-1139.06,0.00021643,2]
[371551237,1752345063441,-566.32,0.00021643,2]
[371551238,1752345063451,-670.89,0.00021643,2]
[371551239,1752345063461,-588.29,0.00021643,2]
[371551240,1752345063471,-2698.45,0.00021643,2]
[371551241,1752345063482,-1499.85,0.00021643,2]
[371551242,1752345063491,-485.02,0.00021643,2]
[371551243,1752345063501,-644.74,0.00021643,2]
[371551244,1752345063512,-460.0,0.00021643,2]
[371551245,1752345063521,-480.24,0.00021643,2]
[371551246,1752345063531,-460.0,0.00021643,2]
[371551247,1752345063542,-596.61,0.00021643,2]
[371551248,1752345063551,-1004.62,0.00021643,2]
[371551249,1752345063562,-608.08,0.00021643,2]
[371551250,1752345063571,-1615.51,0.00021643,2]
[371551251,1752345063581,-460.0,0.00021643,2]
[371551252,1752345063592,-2336.58,0.00021643,2]
[371551253,1752345063602,-550.21,0.00021643,2]
[371551254,1752345063612,-460.0,0.00021643,2]
[371551255,1752345063622,-3234.99,0.00021643,2]
[371551256,1752345063632,-530.01398059,0.00021643,2]
[371551257,1752345063642,-221.25,0.00021643,2]
[371551258,1752345063651,-778.51,0.00021643,2]
[371551259,1752345063661,-636.67,0.00021643,2]
[371551260,1752345063671,-464.69,0.00021643,2]
[371551261,1752345063680,-2115.58,0.00021643,2]
[371551262,1752345063691,-189.10769702,0.00021643,2]
[371551263,1752345063700,-406.710149,0.00021756,4]
[371551264,1752345063710,-3745.95,0.000218,2]
[371551265,1752345063720,-29944.87,0.000218,2]
[371551266,1752345063729,-516.42,0.00021846,2]
[371551267,1752345063738,-1158.6,0.00021855,2]
[371551268,1752345063748,-1102.62,0.00021855,2]
[371551269,1752345063758,-291.56406408,0.00021855,2]
[371551270,1752345063768,-2045.98,0.00021855,2]
[371551271,1752345063778,-485.06,0.00021855,2]
[371551272,1752345063787,-1166.84,0.00021855,2]
[371551273,1752345063797,-4133.6,0.00021855,2]
[371551274,1752345063807,-601.54852355,0.00021864,2]
[371551275,1752345063817,-1724.13888368,0.00021866,6]
[371551276,1752345063827,-857.4953208,0.0002189,2]
[371551277,1752345063837,-561.63,0.00021917,2]
[371551278,1752345063847,-534.5,0.00021917,2]
[371551279,1752345063858,-463.32,0.00021917,2]
[371551280,1752345063868,-485.04,0.00021917,2]
[371551281,1752345063878,-460.0,0.00021917,2]
[371551282,1752345063887,-585.71,0.00021917,2]
[371551283,1752345063896,-1139.06,0.00021917,2]
[371551284,1752345063906,-566.32,0.00021917,2]
[371551285,1752345063916,-670.89,0.00021917,2]
[371551286,1752345063926,-588.29,0.00021917,2]
[371551287,1752345063936,-2698.45,0.00021917,2]
[371551288,1752345063946,-1499.85,0.00021917,2]
[371551289,1752345063955,-485.02,0.00021917,2]
[371551290,1752345063965,-644.74,0.00021917,2]
[371551291,1752345063975,-460.0,0.00021917,2]
[371551292,1752345063985,-480.24,0.00021917,2]
[371551293,1752345063995,-460.0,0.00021917,2]
[371551294,1752345064004,-596.61,0.00021917,2]
[371551295,1752345064014,-1004.62,0.00021917,2]
[371551296,1752345064023,-608.08,0.00021917,2]
[371551297,1752345064034,-1615.51,0.00021917,2]
[371551298,1752345064045,-460.0,0.00021917,2]
[371551299,1752345064055,-2336.58,0.00021917,2]
[371551300,1752345064064,-550.21,0.00021917,2]
[371551301,1752345064074,-599.36,0.00021917,2]
[371551302,1752345064084,-3234.99,0.00021917,2]
[371551303,1752345064094,-778.51,0.00021917,2]
[371551304,1752345064104,-636.67,0.00021917,2]
[371551305,1752345064113,-464.69,0.00021917,2]
[371551306,1752345064123,-2115.58,0.00021917,2]
[371551307,1752345064133,-253.09215503,0.0002199,2]
[371551308,1752345064142,-2000.52774545,0.0002199,2]
[371551309,1752345064151,-18442.3736123,0.00022,3]
[371551310,1752345064160,-214.25614385,0.00022,3]
[371551311,1752345064170,-160.0,0.00022,3]
[371551312,1752345064180,-2154.0,0.00022099,2]
[371551313,1752345064189,-407.0,0.00022099,2]
[371551314,1752345064199,-5000.0,0.00022103,2]
[371551315,1752345064208,-221.0,0.00022111,2]
[371551316,1752345064218,-1827.60029057,0.00022114,2]
[371551317,1752345064227,-1158.6,0.00022129,2]
[371551318,1752345064237,-1102.62,0.00022129,2]
[371551319,1752345064247,-2045.98,0.00022129,2]
[371551320,1752345064256,-485.06,0.00022129,2]
[371551321,1752345064266,-1166.84,0.00022129,2]
[371551322,1752345064276,-4133.6,0.00022129,2]
[371551323,1752345064286,-166.804095,0.00022141,6]
[371551324,1752345064296,-1724.13888368,0.00022176,6]
[371551325,1752345064307,-561.63,0.00022191,2]
[371551326,1752345064316,-534.5,0.00022191,2]
[371551327,1752345064326,-463.32,0.00022191,2]
[371551328,1752345064335,-485.04,0.00022191,2]
[371551329,1752345064345,-460.0,0.00022191,2]
[371551330,1752345064354,-585.71,0.00022191,2]
[371551331,1752345064363,-1139.06,0.00022191,2]
[371551332,1752345064373,-566.32,0.00022191,2]
[371551333,1752345064382,-670.89,0.00022191,2]
[371551334,1752345064391,-588.29,0.00022191,2]
[371551335,1752345064401,-2698.45,0.00022191,2]
[371551336,1752345064410,-1499.85,0.00022191,2]
[371551337,1752345064420,-485.02,0.00022191,2]
[371551338,1752345064429,-644.74,0.00022191,2]
[371551339,1752345064439,-460.0,0.00022191,2]
[371551340,1752345064449,-480.24,0.00022191,2]
[371551341,1752345064459,-159.34523414,0.00022191,2]
[371551342,1752345064469,-596.61,0.00022191,2]
[371551343,1752345064478,-1004.62,0.00022191,2]
[371551344,1752345064488,-608.08,0.00022191,2]
[371551345,1752345064498,-1615.51,0.00022191,2]
[371551346,1752345064507,-213.94,0.00022191,2]
[371551347,1752345064516,-2336.58,0.00022191,2]
[371551348,1752345064525,-550.21,0.00022191,2]
[371551349,1752345064536,-3234.99,0.00022191,2]
[371551350,1752345064545,-778.51,0.00022191,2]
[371551351,1752345064555,-636.67,0.00022191,2]
[371551352,1752345064565,-464.69,0.00022191,2]
[371551353,1752345064575,-2115.58,0.00022191,2]
[371551354,1752345064584,-21889.04022114,0.000222,2]
[371551357,1752345262470,256.65765864,0.00026137,120]
[371551360,1752345433807,206.0,0.00022,120]
[371551363,1752345490980,163.98138,0.00013699,2]
[371551366,1752345588076,240.826389,0.00015945,2]
[371551368,1752345688543,228.85966732,0.00016159,2]
[371551369,1752345772933,172.9670106,0.00015718,2]
[371551371,1752345889983,242.16959603,0.00015945,2]
[371551417,1752346130966,826.9930064,0.00015515,2]
[371551430,1752346202300,183.294842,0.00015574,2]
[371551452,1752346232852,-543.49041915,0.00016338,2]
[371551453,1752346232864,-1200.0,0.00016436,2]
[371551454,1752346232874,-1200.0,0.00016437,2]
[371551455,1752346232884,-300.0,0.00016437,2]
[371551456,1752346232894,-300.0,0.00016437,2]
[371551457,1752346232904,-300.0,0.00016437,2]
[371551458,1752346232914,-460.0,0.00016438,2]
[371551459,1752346232923,-460.0,0.00016438,2]
[371551460,1752346232933,-460.0,0.00016438,2]
[371551461,1752346232942,-460.0,0.00016438,2]
[371551462,1752346232952,-460.0,0.00016438,2]
[371551463,1752346232961,-460.0,0.00016438,2]
[371551464,1752346232971,-460.0,0.00016438,2]
[371551465,1752346232980,-460.0,0.00016438,2]
[371551466,1752346232989,-460.0,0.00016438,2]
[371551467,1752346232999,-460.0,0.00016438,2]
[371551468,1752346233009,-460.0,0.00016438,2]
[371551469,1752346233019,-460.0,0.00016438,2]
[371551470,1752346233028,-460.0,0.00016438,2]
[371551471,1752346233038,-460.0,0.00016438,2]
[371551472,1752346233048,-460.0,0.00016438,2]
[371551473,1752346233058,-460.0,0.00016438,2]
[371551474,1752346233067,-460.0,0.00016438,2]
[371551475,1752346233077,-460.0,0.00016438,2]
[371551476,1752346233087,-460.0,0.00016438,2]
[371551477,1752346233096,-460.0,0.00016438,2]
[371551478,1752346233106,-460.0,0.00016438,2]
[371551479,1752346233115,-460.0,0.00016438,2]
[371551480,1752346233125,-460.0,0.00016438,2]
[371551481,1752346233135,-460.0,0.00016438,2]
[371551482,1752346233144,-460.0,0.00016438,2]
[371551483,1752346233154,-460.0,0.00016438,2]
[371551484,1752346233163,-460.0,0.00016438,2]
[371551485,1752346233173,-460.0,0.00016438,2]
[371551486,1752346233183,-460.0,0.00016438,2]
[371551487,1752346233193,-460.0,0.00016438,2]
[371551488,1752346233208,-460.0,0.00016438,2]
[371551489,1752346233217,-460.0,0.00016438,2]
[371551490,1752346233227,-460.0,0.00016438,2]
[371551491,1752346233238,-460.0,0.00016438,2]
[371551492,1752346233250,-460.0,0.00016438,2]
[371551493,1752346233259,-609.19052968,0.00016438,2]
[371551494,1752346233269,-198.16212389,0.00016438,2]
[371551495,1752346233280,-460.0,0.00016438,2]
[371551496,1752346233290,-460.0,0.00016438,2]
[371551497,1752346233300,-373.73180976,0.00016438,2]
[371551498,1752346233309,-460.00000001,0.00016438,2]
[371551499,1752346233320,-460.0,0.00016438,2]
[371551500,1752346233329,-460.0,0.00016438,2]
[371551501,1752346233340,-460.0,0.00016438,2]
[371551502,1752346233350,-460.0,0.00016438,2]
[371551503,1752346233359,-460.0,0.00016438,2]
[371551504,1752346233370,-460.0,0.00016438,2]
[371551505,1752346233380,-460.0,0.00016438,2]
[371551506,1752346233390,-460.0,0.00016438,2]
[371551507,1752346233399,-325.57932852,0.00016438,2]
[371551508,1752346233409,-460.0,0.00016438,2]
[371551509,1752346233419,-460.0,0.00016438,2]
[371551510,1752346233428,-460.0,0.00016438,2]
[371551511,1752346233438,-460.0,0.00016438,2]
[371551512,1752346233447,-460.0,0.00016438,2]
[371551513,1752346233457,-460.0,0.00016438,2]
[371551514,1752346233467,-388.58732117,0.00016438,2]
[371551515,1752346233477,-460.0,0.00016438,2]
[371551516,1752346233487,-460.0,0.00016438,2]
[371551517,1752346233496,-460.0,0.00016438,2]
[371551518,1752346233506,-460.0,0.00016438,2]
[371551519,1752346233516,-460.0,0.00016438,2]
[371551520,1752346233526,-460.0,0.00016438,2]
[371551521,1752346233536,-460.0,0.00016438,2]
[371551522,1752346233545,-460.0,0.00016438,2]
[371551523,1752346233555,-460.0,0.00016438,2]
[371551524,1752346233564,-182.08783053,0.00016438,2]
[371551525,1752346233574,-460.0,0.00016438,2]
[371551526,1752346233584,-460.0,0.00016438,2]
[371551527,1752346233595,-500.0,0.00016438,2]
[371551528,1752346233605,-460.0,0.00016438,2]
[371551529,1752346233615,-460.0,0.00016438,2]
[371551530,1752346233626,-595.72522396,0.00016438,2]
[371551531,1752346233636,-460.0,0.00016438,2]
[371551532,1752346233646,-460.0,0.00016438,2]
[371551533,1752346233656,-460.0,0.00016438,2]
[371551534,1752346233665,-460.0,0.00016438,2]
[371551535,1752346233675,-460.0,0.00016438,2]
[371551536,1752346233685,-460.0,0.00016438,2]
[371551537,1752346233694,-460.0,0.00016438,2]
[371551538,1752346233704,-460.0,0.00016438,2]
[371551539,1752346233714,-399.1972787,0.00016438,2]
[371551540,1752346233729,-60.8027213,0.00016438,2]
[371551541,1752346233738,-460.0,0.00016438,2]
[371551542,1752346233749,-460.0,0.00016438,2]
[371551543,1752346233759,-460.0,0.00016438,2]
[371551544,1752346233769,-460.0,0.00016438,2]
[371551545,1752346233779,-460.0,0.00016438,2]
[371551546,1752346233789,-170.4847906,0.00016438,2]
[371551549,1752346238666,-289.5152094,0.00016438,2]
[371551551,1752346238676,-460.0,0.00016438,2]
[371551553,1752346238686,-460.0,0.00016438,2]
[371551555,1752346238696,-460.0,0.00016438,2]
[371551557,1752346238705,-460.0,0.00016438,2]
[371551559,1752346238715,-460.0,0.00016438,2]
[371551561,1752346238725,-460.0,0.00016438,2]
[371551563,1752346238734,-460.0,0.00016438,2]
[371551565,1752346238743,-460.0,0.00016438,2]
[371551566,1752346238753,-460.0,0.00016438,2]
[371551567,1752346238763,-460.0,0.00016438,2]
[371551568,1752346238773,-460.0,0.00016438,2]
[371551569,1752346238783,-460.0,0.00016438,2]
[371551570,1752346238792,-460.0,0.00016438,2]
[371551571,1752346238802,-460.0,0.00016438,2]
[371551572,1752346238813,-460.0,0.00016438,2]
[371551573,1752346238823,-460.0,0.00016438,2]
[371551574,1752346238833,-460.0,0.00016438,2]
[371551575,1752346238843,-460.0,0.00016438,2]
[371551576,1752346238853,-476.83,0.00016438,2]
[371551577,1752346238863,-460.0,0.00016438,2]
[371551578,1752346238873,-460.0,0.00016438,2]
[371551579,1752346238882,-460.0,0.00016438,2]
[371551580,1752346238892,-460.0,0.00016438,2]
[371551581,1752346238902,-282.66557727,0.00016438,2]
[371551582,1752346238912,-273.19767997,0.00016438,2]
[371551583,1752346238924,-186.80232003,0.00016438,2]
[371551584,1752346238934,-460.0,0.00016438,2]
[371551585,1752346238943,-216.65086378,0.00016438,2]
[371551586,1752346238953,-460.0,0.00016438,2]
[371551587,1752346238963,-460.0,0.00016438,2]
[371551588,1752346238972,-460.0,0.00016438,2]
[371551589,1752346238982,-460.0,0.00016438,2]
[371551590,1752346238991,-460.0,0.00016438,2]
[371551591,1752346239001,-460.0,0.00016438,2]
[371551592,1752346239010,-460.0,0.00016438,2]
[371551593,1752346239019,-460.0,0.00016438,2]
[371551594,1752346239029,-460.0,0.00016438,2]
[371551595,1752346239038,-460.0,0.00016438,2]
[371551596,1752346239047,-434.24237476,0.00016438,2]
[371551597,1752346239056,-460.0,0.00016438,2]
[371551598,1752346239065,-460.0,0.00016438,2]
[371551599,1752346239076,-460.0,0.00016438,2]
[371551600,1752346239085,-460.0,0.00016438,2]
[371551601,1752346239094,-480.52,0.00016438,2]
[371551602,1752346239104,-460.0,0.00016438,2]
[371551603,1752346239113,-460.0,0.00016438,2]
[371551604,1752346239123,-460.0,0.00016438,2]
[371551605,1752346239133,-460.0,0.00016438,2]
[371551606,1752346239143,-496.02185134,0.00016438,2]
[371551607,1752346239152,-177.59924234,0.00016438,2]
[371551608,1752346239161,-460.0,0.00016438,2]
[371551609,1752346239171,-460.0,0.00016438,2]
[371551610,1752346239181,-446.74575654,0.00016438,2]
[371551611,1752346239190,-460.0,0.00016438,2]
[371551612,1752346239200,-553.25,0.00016438,2]
[371551613,1752346239210,-460.0,0.00016438,2]
[371551614,1752346239219,-460.0,0.00016438,2]
[371551615,1752346239228,-460.0,0.00016438,2]
[371551616,1752346239237,-460.0,0.00016438,2]
[371551617,1752346239248,-460.0,0.00016438,2]
[371551618,1752346239258,-328.43525502,0.00016438,2]
[371551619,1752346239267,-278.43945381,0.00016438,2]
[371551620,1752346239277,-460.0,0.00016438,2]
[371551621,1752346239287,-460.0,0.00016438,2]
[371551622,1752346239297,-460.0,0.00016438,2]
[371551623,1752346239306,-460.0,0.00016438,2]
[371551624,1752346239316,-460.0,0.00016438,2]
[371551625,1752346239326,-460.0,0.00016438,2]
[371551626,1752346239336,-460.0,0.00016438,2]
[371551627,1752346239346,-460.0,0.00016438,2]
[371551628,1752346239356,-460.0,0.00016438,2]
[371551629,1752346239366,-460.0,0.00016438,2]
[371551631,1752346239376,-460.0,0.00016438,2]
[371551633,1752346239386,-460.0,0.00016438,2]
[371551635,1752346239395,-460.0,0.00016438,2]
[371551636,1752346239404,-460.0,0.00016438,2]
[371551638,1752346239413,-460.0,0.00016438,2]
[371551640,1752346239423,-460.0,0.00016438,2]
[371551642,1752346239433,-460.0,0.00016438,2]
[371551644,1752346239442,-460.0,0.00016438,2]
[371551646,1752346239452,-505.0,0.00016438,2]
[371551648,1752346239462,-460.0,0.00016438,2]
[371551650,1752346239471,-460.0,0.00016438,2]
[371551652,1752346239482,-460.0,0.00016438,2]
[371551654,1752346239491,-460.0,0.00016438,2]
[371551656,1752346239500,-460.0,0.00016438,2]
[371551658,1752346239510,-460.0,0.00016438,2]
[371551660,1752346239519,-460.0,0.00016438,2]
[371551662,1752346239529,-460.0,0.00016438,2]
[371551664,1752346239538,-460.0,0.00016438,2]
[371551666,1752346239547,-460.0,0.00016438,2]
[371551668,1752346239556,-460.0,0.00016438,2]
[371551670,1752346239566,-460.0,0.00016438,2]
[371551672,1752346239576,-460.0,0.00016438,2]
[371551674,1752346239585,-460.0,0.00016438,2]
[371551676,1752346239595,-460.0,0.00016438,2]
[371551678,1752346239605,-460.0,0.00016438,2]
[371551680,1752346239616,-460.0,0.00016438,2]
[371551682,1752346239625,-575.74330634,0.00016438,2]
[371551684,1752346239635,-460.0,0.00016438,2]
[371551686,1752346239645,-460.0,0.00016438,2]
[371551688,1752346239654,-460.0,0.00016438,2]
[371551690,1752346239664,-460.0,0.00016438,2]
[371551692,1752346239673,-460.0,0.00016438,2]